{"text_format":"1","workbook":"xlsx","n_sheets":3,"sheets":["Sheet1","Sheet2","Sheet3"],"not_rendered":{"charts":0,"images":0,"macros":1,"external_links":0,"defined_names":1,"comments":0,"pivot_tables":0},"unopened":[],"bounds":{"document_bytes":16777216,"sheet_cells":100000,"rows_first":2000,"rows_last":500,"rows_between":2000,"halvings":0,"cell_chars":16384,"cell_head_chars":4096},"cells_cut":0,"cells_raw":0,"read":"whole","date_system":"1900"}

{"sheet":"Sheet1","index":0,"n_rows":35,"n_cols":96,"rows_kept":35,"cut":false,"hidden":false,"merged":[[27,95,27,96],[12,89,12,93],[12,95,12,97],[22,95,22,96],[23,95,23,96],[24,95,24,96],[25,95,25,96],[26,95,26,96],[17,95,17,96],[18,95,18,96],[19,95,19,96],[20,95,20,96],[21,95,21,96],[13,95,13,96],[14,95,14,96],[15,95,15,96],[16,95,16,96],[11,82,11,86],[12,81,12,82],[12,83,12,84],[12,85,12,86],[11,3,11,5],[11,6,11,8],[1,0,1,4],[3,12,3,14],[4,12,4,14],[5,12,5,14],[1,8,1,10],[6,12,6,14],[7,12,7,14],[10,12,10,14],[1,12,1,14],[2,12,2,14],[5,0,10,0],[5,1,10,1],[5,2,10,3],[5,4,10,6],[3,8,3,10],[4,8,4,10],[7,8,7,10],[11,9,11,11],[11,12,11,14],[8,12,8,14],[9,12,9,14],[5,8,5,10],[8,8,8,10],[9,8,9,10],[10,8,10,10],[0,0,0,4],[3,1,3,2],[4,1,4,2],[3,4,3,6],[4,4,4,6],[35,0,42,14],[34,0,34,14],[28,95,28,96],[29,95,29,96],[30,95,30,96],[31,95,31,96],[32,95,32,96],[33,95,33,96]]}
["PWL DENSITY DATA FORM (LANE FOOT)"]
["               Nuclear HMA Density QC/QV Testing Records",null,null,null,null,"Lot #:",1,"Lift/Layer:",null,null,null,"Density\nStandard:"]
[null,null,null,null,null,null,null,null,null,null,null,"Moisture\nStandard: "]
["Project ID:",null,null,"Road Name:",null,null,null,"Contractor:",null,null,null,"Gauge Serial #:"]
["Project\nLeader:",null,null,"County: ",null,null,null,"QC \nNUCDENSITYTEC:",null,null,null,"WisDOT Mix #:"]
[null,null,null,null,null,null,null,"QV \nNUCDENSITYTEC:",null,null,null,"Mix Type:"]
[null,null,null,null,null,null,null,"Lot Limits:",null,"to",null,"Target Gmm:"]
[null,null,null,null,null,null,null,"Lot Length(ft):",null,null,null,"Target Max\nDensity (PCF):",{"$f":"M7*62.24","v":0}]
[null,null,null,null,null,null,null,"Lane\nWidth (ftt):",null,null,null,"Required\nDensity %:"]
[null,null,null,null,null,null,null,"Nominal \nThickness:",null,null,null,"Date Placed:"]
[null,null,null,null,null,null,null,"Gauge Offset",null,null,null,"Date Tested:"]
[null,null,null,"Reading 1",null,null,"Reading  2 (rotate 180)",null,null,"Reading  3 (if needed)",null,null,"Average",null,null,null,null,null,null,null,null,null,null,null,null,null,null,null,null,null,null,null,null,null,null,null,null,null,null,null,null,null,null,null,null,null,null,null,null,null,null,null,null,null,null,null,null,null,null,null,null,null,null,null,null,null,null,null,null,null,null,null,null,null,null,null,null,null,null,null,null,"ID","Variation from Avg"]
["Lot - Sublot ID ","Random Station","Random Offset","Density Count","Wet Density 1             ","% Max Density 1","Density Count","Wet Density 2            ","% Max Density 2","Density Count","Wet Density 3             ","% Max Density 3","Average PCF","% Max Density","Adjusted % Max Density ",null,null,null,null,null,null,null,null,null,null,null,null,null,null,null,null,null,null,null,null,null,null,null,null,null,null,null,null,null,null,null,null,null,null,null,null,null,null,null,null,null,null,null,null,null,null,null,null,null,null,null,null,null,null,null,null,null,null,null,null,null,null,null,null,null,null,"Read 1",null,"Read 2",null,"Read 3",null,null,null,"Filter Outlier",null,null,null,null,null,"Nuc Avg Excluding Outlier"]
[{"$f":"CONCATENATE($G$2,\"-1A\")","v":"1-1A"},null,null,null,null,{"$f":"IF(E14=\"\",\"\",(+E14/$M$8))","v":""},null,null,{"$f":"IF(H14=\"\",\"\",(+H14/$M$8))","v":""},null,null,{"$f":"IF(K14=\"\",\"\",(+K14/$M$8))","v":""},{"$f":"IF(F14=\"\",\"\",CR14)","v":""},{"$f":"IF(F14=\"\",\"\",((M14/$M$8)*100))","v":""},{"$f":"IF(N14=\"\",\"\",(N14+$I$11))","v":""},null,null,null,null,null,null,null,null,null,null,null,null,null,null,null,null,null,null,null,null,null,null,null,null,null,null,null,null,null,null,null,null,null,null,null,null,null,null,null,null,null,null,null,null,null,null,null,null,null,null,null,null,null,null,null,null,null,null,null,null,null,null,null,null,null,null,{"$f":"A14","v":"1-1A"},{"$f":"ABS(AVERAGE(E14,H14,K14)-E14)","v":{"$error":"#DIV/0!"}},{"$f":"A14","v":"1-1A"},{"$f":"ABS(AVERAGE(E14,H14,K14)-H14)","v":{"$error":"#DIV/0!"}},{"$f":"A14","v":"1-1A"},{"$f":"ABS(AVERAGE(E14,H14,K14)-K14)","v":{"$error":"#DIV/0!"}},null,null,{"$f":"IF(CE14=MAX($CE14,$CG14,$CI14),0,E14)","v":{"$error":"#DIV/0!"}},null,{"$f":"IF(CG14=MAX($CE14,$CG14,$CI14),0,H14)","v":{"$error":"#DIV/0!"}},null,{"$f":"IF(CI14=MAX($CE14,$CG14,$CI14),0,K14)","v":{"$error":"#DIV/0!"}},null,{"$f":"AVERAGEIF(CL14:CP14,\">0\",CL14:CP14)","v":{"$error":"#DIV/0!"}}]
[{"$f":"CONCATENATE($G$2,\"-1B\")","v":"1-1B"},null,null,null,null,{"$f":"IF(E15=\"\",\"\",(+E15/$M$8))","v":""},null,null,{"$f":"IF(H15=\"\",\"\",(+H15/$M$8))","v":""},null,null,{"$f":"IF(K15=\"\",\"\",(+K15/$M$8))","v":""},{"$f":"IF(F15=\"\",\"\",CR15)","v":""},{"$f":"IF(F15=\"\",\"\",((M15/$M$8)*100))","v":""},{"$f":"IF(N15=\"\",\"\",(N15+$I$11))","v":""},null,null,null,null,null,null,null,null,null,null,null,null,null,null,null,null,null,null,null,null,null,null,null,null,null,null,null,null,null,null,null,null,null,null,null,null,null,null,null,null,null,null,null,null,null,null,null,null,null,null,null,null,null,null,null,null,null,null,null,null,null,null,null,null,null,null,{"$f":"A15","v":"1-1B"},{"$error":"#DIV/0!"},{"$f":"A15","v":"1-1B"},{"$error":"#DIV/0!"},{"$f":"A15","v":"1-1B"},{"$error":"#DIV/0!"},null,null,{"$error":"#DIV/0!"},null,{"$error":"#DIV/0!"},null,{"$error":"#DIV/0!"},null,{"$f":"AVERAGEIF(CL15:CP15,\">0\",CL15:CP15)","v":{"$error":"#DIV/0!"}}]
[{"$f":"CONCATENATE($G$2,\"-1C\")","v":"1-1C"},null,null,null,null,{"$f":"IF(E16=\"\",\"\",(+E16/$M$8))","v":""},null,null,"",null,null,"","","","",null,null,null,null,null,null,null,null,null,null,null,null,null,null,null,null,null,null,null,null,null,null,null,null,null,null,null,null,null,null,null,null,null,null,null,null,null,null,null,null,null,null,null,null,null,null,null,null,null,null,null,null,null,null,null,null,null,null,null,null,null,null,null,null,null,null,"1-1C",{"$error":"#DIV/0!"},"1-1C",{"$error":"#DIV/0!"},"1-1C",{"$error":"#DIV/0!"},null,null,{"$error":"#DIV/0!"},null,{"$error":"#DIV/0!"},null,{"$error":"#DIV/0!"},null,{"$f":"AVERAGEIF(CL16:CP16,\">0\",CL16:CP16)","v":{"$error":"#DIV/0!"}}]
[{"$f":"CONCATENATE($G$2,\"-2A\")","v":"1-2A"},null,null,null,null,"",null,null,"",null,null,"","","","",null,null,null,null,null,null,null,null,null,null,null,null,null,null,null,null,null,null,null,null,null,null,null,null,null,null,null,null,null,null,null,null,null,null,null,null,null,null,null,null,null,null,null,null,null,null,null,null,null,null,null,null,null,null,null,null,null,null,null,null,null,null,null,null,null,null,"1-2A",{"$error":"#DIV/0!"},"1-2A",{"$error":"#DIV/0!"},"1-2A",{"$error":"#DIV/0!"},null,null,{"$error":"#DIV/0!"},null,{"$error":"#DIV/0!"},null,{"$error":"#DIV/0!"},null,{"$f":"AVERAGEIF(CL17:CP17,\">0\",CL17:CP17)","v":{"$error":"#DIV/0!"}}]
[{"$f":"CONCATENATE($G$2,\"-2B\")","v":"1-2B"},null,null,null,null,"",null,null,"",null,null,"","","","",null,null,null,null,null,null,null,null,null,null,null,null,null,null,null,null,null,null,null,null,null,null,null,null,null,null,null,null,null,null,null,null,null,null,null,null,null,null,null,null,null,null,null,null,null,null,null,null,null,null,null,null,null,null,null,null,null,null,null,null,null,null,null,null,null,null,"1-2B",{"$error":"#DIV/0!"},"1-2B",{"$error":"#DIV/0!"},"1-2B",{"$error":"#DIV/0!"},null,null,{"$error":"#DIV/0!"},null,{"$error":"#DIV/0!"},null,{"$error":"#DIV/0!"},null,{"$f":"AVERAGEIF(CL18:CP18,\">0\",CL18:CP18)","v":{"$error":"#DIV/0!"}}]
[{"$f":"CONCATENATE($G$2,\"-2C\")","v":"1-2C"},null,null,null,null,"",null,null,"",null,null,"","","","",null,null,null,null,null,null,null,null,null,null,null,null,null,null,null,null,null,null,null,null,null,null,null,null,null,null,null,null,null,null,null,null,null,null,null,null,null,null,null,null,null,null,null,null,null,null,null,null,null,null,null,null,null,null,null,null,null,null,null,null,null,null,null,null,null,null,"1-2C",{"$error":"#DIV/0!"},"1-2C",{"$error":"#DIV/0!"},"1-2C",{"$error":"#DIV/0!"},null,null,{"$error":"#DIV/0!"},null,{"$error":"#DIV/0!"},null,{"$error":"#DIV/0!"},null,{"$f":"AVERAGEIF(CL19:CP19,\">0\",CL19:CP19)","v":{"$error":"#DIV/0!"}}]
[{"$f":"CONCATENATE($G$2,\"-3A\")","v":"1-3A"},null,null,null,null,"",null,null,"",null,null,"","","","",null,null,null,null,null,null,null,null,null,null,null,null,null,null,null,null,null,null,null,null,null,null,null,null,null,null,null,null,null,null,null,null,null,null,null,null,null,null,null,null,null,null,null,null,null,null,null,null,null,null,null,null,null,null,null,null,null,null,null,null,null,null,null,null,null,null,"1-3A",{"$error":"#DIV/0!"},"1-3A",{"$error":"#DIV/0!"},"1-3A",{"$error":"#DIV/0!"},null,null,{"$error":"#DIV/0!"},null,{"$error":"#DIV/0!"},null,{"$error":"#DIV/0!"},null,{"$error":"#DIV/0!"}]
[{"$f":"CONCATENATE($G$2,\"-3B\")","v":"1-3B"},null,null,null,null,"",null,null,"",null,null,"","","","",null,null,null,null,null,null,null,null,null,null,null,null,null,null,null,null,null,null,null,null,null,null,null,null,null,null,null,null,null,null,null,null,null,null,null,null,null,null,null,null,null,null,null,null,null,null,null,null,null,null,null,null,null,null,null,null,null,null,null,null,null,null,null,null,null,null,"1-3B",{"$error":"#DIV/0!"},"1-3B",{"$error":"#DIV/0!"},"1-3B",{"$error":"#DIV/0!"},null,null,{"$error":"#DIV/0!"},null,{"$error":"#DIV/0!"},null,{"$error":"#DIV/0!"},null,{"$error":"#DIV/0!"}]
[{"$f":"CONCATENATE($G$2,\"-3C\")","v":"1-3C"},null,null,null,null,"",null,null,"",null,null,"","","","",null,null,null,null,null,null,null,null,null,null,null,null,null,null,null,null,null,null,null,null,null,null,null,null,null,null,null,null,null,null,null,null,null,null,null,null,null,null,null,null,null,null,null,null,null,null,null,null,null,null,null,null,null,null,null,null,null,null,null,null,null,null,null,null,null,null,"1-3C",{"$error":"#DIV/0!"},"1-3C",{"$error":"#DIV/0!"},"1-3C",{"$error":"#DIV/0!"},null,null,{"$error":"#DIV/0!"},null,{"$error":"#DIV/0!"},null,{"$error":"#DIV/0!"},null,{"$error":"#DIV/0!"}]
[{"$f":"CONCATENATE($G$2,\"-4A\")","v":"1-4A"},null,null,null,null,"",null,null,"",null,null,{"$f":"IF(K23=\"\",\"\",(+K23/$M$8))","v":""},"","","",null,null,null,null,null,null,null,null,null,null,null,null,null,null,null,null,null,null,null,null,null,null,null,null,null,null,null,null,null,null,null,null,null,null,null,null,null,null,null,null,null,null,null,null,null,null,null,null,null,null,null,null,null,null,null,null,null,null,null,null,null,null,null,null,null,null,"1-4A",{"$f":"ABS(AVERAGE(E23,H23,K23)-E23)","v":{"$error":"#DIV/0!"}},"1-4A",{"$f":"ABS(AVERAGE(E23,H23,K23)-H23)","v":{"$error":"#DIV/0!"}},"1-4A",{"$f":"ABS(AVERAGE(E23,H23,K23)-K23)","v":{"$error":"#DIV/0!"}},null,null,{"$error":"#DIV/0!"},null,{"$error":"#DIV/0!"},null,{"$f":"IF(CI23=MAX($CE23,$CG23,$CI23),0,K23)","v":{"$error":"#DIV/0!"}},null,{"$error":"#DIV/0!"}]
[{"$f":"CONCATENATE($G$2,\"-4B\")","v":"1-4B"},null,null,null,null,"",null,null,"",null,null,"","","","",null,null,null,null,null,null,null,null,null,null,null,null,null,null,null,null,null,null,null,null,null,null,null,null,null,null,null,null,null,null,null,null,null,null,null,null,null,null,null,null,null,null,null,null,null,null,null,null,null,null,null,null,null,null,null,null,null,null,null,null,null,null,null,null,null,null,"1-4B",{"$error":"#DIV/0!"},"1-4B",{"$error":"#DIV/0!"},"1-4B",{"$error":"#DIV/0!"},null,null,{"$error":"#DIV/0!"},null,{"$error":"#DIV/0!"},null,{"$error":"#DIV/0!"},null,{"$error":"#DIV/0!"}]
[{"$f":"CONCATENATE($G$2,\"-4C\")","v":"1-4C"},null,null,null,null,"",null,null,"",null,null,"","","","",null,null,null,null,null,null,null,null,null,null,null,null,null,null,null,null,null,null,null,null,null,null,null,null,null,null,null,null,null,null,null,null,null,null,null,null,null,null,null,null,null,null,null,null,null,null,null,null,null,null,null,null,null,null,null,null,null,null,null,null,null,null,null,null,null,null,"1-4C",{"$error":"#DIV/0!"},"1-4C",{"$error":"#DIV/0!"},"1-4C",{"$error":"#DIV/0!"},null,null,{"$error":"#DIV/0!"},null,{"$error":"#DIV/0!"},null,{"$error":"#DIV/0!"},null,{"$error":"#DIV/0!"}]
[{"$f":"CONCATENATE($G$2,\"-5A\")","v":"1-5A"},null,null,null,null,"",null,null,"",null,null,"","","","",null,null,null,null,null,null,null,null,null,null,null,null,null,null,null,null,null,null,null,null,null,null,null,null,null,null,null,null,null,null,null,null,null,null,null,null,null,null,null,null,null,null,null,null,null,null,null,null,null,null,null,null,null,null,null,null,null,null,null,null,null,null,null,null,null,null,"1-5A",{"$error":"#DIV/0!"},"1-5A",{"$error":"#DIV/0!"},"1-5A",{"$error":"#DIV/0!"},null,null,{"$error":"#DIV/0!"},null,{"$error":"#DIV/0!"},null,{"$error":"#DIV/0!"},null,{"$error":"#DIV/0!"}]
[{"$f":"CONCATENATE($G$2,\"-5B\")","v":"1-5B"},null,null,null,null,"",null,null,"",null,null,"","","","",null,null,null,null,null,null,null,null,null,null,null,null,null,null,null,null,null,null,null,null,null,null,null,null,null,null,null,null,null,null,null,null,null,null,null,null,null,null,null,null,null,null,null,null,null,null,null,null,null,null,null,null,null,null,null,null,null,null,null,null,null,null,null,null,null,null,"1-5B",{"$error":"#DIV/0!"},"1-5B",{"$error":"#DIV/0!"},"1-5B",{"$error":"#DIV/0!"},null,null,{"$error":"#DIV/0!"},null,{"$error":"#DIV/0!"},null,{"$error":"#DIV/0!"},null,{"$error":"#DIV/0!"}]
[{"$f":"CONCATENATE($G$2,\"-5C\")","v":"1-5C"},null,null,null,null,"",null,null,"",null,null,"","","","",null,null,null,null,null,null,null,null,null,null,null,null,null,null,null,null,null,null,null,null,null,null,null,null,null,null,null,null,null,null,null,null,null,null,null,null,null,null,null,null,null,null,null,null,null,null,null,null,null,null,null,null,null,null,null,null,null,null,null,null,null,null,null,null,null,null,"1-5C",{"$error":"#DIV/0!"},"1-5C",{"$error":"#DIV/0!"},"1-5C",{"$error":"#DIV/0!"},null,null,{"$error":"#DIV/0!"},null,{"$error":"#DIV/0!"},null,{"$error":"#DIV/0!"},null,{"$error":"#DIV/0!"}]
[{"$f":"CONCATENATE($G$2,\"-6A\")","v":"1-6A"},null,null,null,null,null,null,null,null,null,null,null,null,null,null,null,null,null,null,null,null,null,null,null,null,null,null,null,null,null,null,null,null,null,null,null,null,null,null,null,null,null,null,null,null,null,null,null,null,null,null,null,null,null,null,null,null,null,null,null,null,null,null,null,null,null,null,null,null,null,null,null,null,null,null,null,null,null,null,null,null,"1-6A",{"$f":"ABS(AVERAGE(E29,H29,K29)-E29)","v":{"$error":"#DIV/0!"}},"1-6A",{"$f":"ABS(AVERAGE(E29,H29,K29)-H29)","v":{"$error":"#DIV/0!"}},"1-6A",{"$f":"ABS(AVERAGE(E29,H29,K29)-K29)","v":{"$error":"#DIV/0!"}},null,null,{"$f":"IF(CE29=MAX($CE29,$CG29,$CI29),0,E29)","v":{"$error":"#DIV/0!"}},null,{"$f":"IF(CG29=MAX($CE29,$CG29,$CI29),0,H29)","v":{"$error":"#DIV/0!"}},null,{"$f":"IF(CI29=MAX($CE29,$CG29,$CI29),0,K29)","v":{"$error":"#DIV/0!"}},null,{"$f":"AVERAGEIF(CL29:CP29,\">0\",CL29:CP29)","v":{"$error":"#DIV/0!"}}]
[{"$f":"CONCATENATE($G$2,\"-6B\")","v":"1-6B"},null,null,null,null,null,null,null,null,null,null,null,null,null,null,null,null,null,null,null,null,null,null,null,null,null,null,null,null,null,null,null,null,null,null,null,null,null,null,null,null,null,null,null,null,null,null,null,null,null,null,null,null,null,null,null,null,null,null,null,null,null,null,null,null,null,null,null,null,null,null,null,null,null,null,null,null,null,null,null,null,"1-6B",{"$error":"#DIV/0!"},"1-6B",{"$error":"#DIV/0!"},"1-6B",{"$error":"#DIV/0!"},null,null,{"$error":"#DIV/0!"},null,{"$error":"#DIV/0!"},null,{"$error":"#DIV/0!"},null,{"$error":"#DIV/0!"}]
[{"$f":"CONCATENATE($G$2,\"-6C\")","v":"1-6C"},null,null,null,null,null,null,null,null,null,null,null,null,null,null,null,null,null,null,null,null,null,null,null,null,null,null,null,null,null,null,null,null,null,null,null,null,null,null,null,null,null,null,null,null,null,null,null,null,null,null,null,null,null,null,null,null,null,null,null,null,null,null,null,null,null,null,null,null,null,null,null,null,null,null,null,null,null,null,null,null,"1-6C",{"$error":"#DIV/0!"},"1-6C",{"$error":"#DIV/0!"},"1-6C",{"$error":"#DIV/0!"},null,null,{"$error":"#DIV/0!"},null,{"$error":"#DIV/0!"},null,{"$error":"#DIV/0!"},null,{"$error":"#DIV/0!"}]
[{"$f":"CONCATENATE($G$2,\"-7A\")","v":"1-7A"},null,null,null,null,null,null,null,null,null,null,null,null,null,null,null,null,null,null,null,null,null,null,null,null,null,null,null,null,null,null,null,null,null,null,null,null,null,null,null,null,null,null,null,null,null,null,null,null,null,null,null,null,null,null,null,null,null,null,null,null,null,null,null,null,null,null,null,null,null,null,null,null,null,null,null,null,null,null,null,null,"1-7A",{"$error":"#DIV/0!"},"1-7A",{"$error":"#DIV/0!"},"1-7A",{"$error":"#DIV/0!"},null,null,{"$error":"#DIV/0!"},null,{"$error":"#DIV/0!"},null,{"$error":"#DIV/0!"},null,{"$error":"#DIV/0!"}]
[{"$f":"CONCATENATE($G$2,\"-7B\")","v":"1-7B"},null,null,null,null,null,null,null,null,null,null,null,null,null,null,null,null,null,null,null,null,null,null,null,null,null,null,null,null,null,null,null,null,null,null,null,null,null,null,null,null,null,null,null,null,null,null,null,null,null,null,null,null,null,null,null,null,null,null,null,null,null,null,null,null,null,null,null,null,null,null,null,null,null,null,null,null,null,null,null,null,"1-7B",{"$error":"#DIV/0!"},"1-7B",{"$error":"#DIV/0!"},"1-7B",{"$error":"#DIV/0!"},null,null,{"$error":"#DIV/0!"},null,{"$error":"#DIV/0!"},null,{"$error":"#DIV/0!"},null,{"$error":"#DIV/0!"}]
[{"$f":"CONCATENATE($G$2,\"-7C\")","v":"1-7C"},null,null,null,null,null,null,null,null,null,null,null,null,null,null,null,null,null,null,null,null,null,null,null,null,null,null,null,null,null,null,null,null,null,null,null,null,null,null,null,null,null,null,null,null,null,null,null,null,null,null,null,null,null,null,null,null,null,null,null,null,null,null,null,null,null,null,null,null,null,null,null,null,null,null,null,null,null,null,null,null,"1-7C",{"$error":"#DIV/0!"},"1-7C",{"$error":"#DIV/0!"},"1-7C",{"$error":"#DIV/0!"},null,null,{"$error":"#DIV/0!"},null,{"$error":"#DIV/0!"},null,{"$error":"#DIV/0!"},null,{"$error":"#DIV/0!"}]
["Test Remarks"]

{"sheet":"Sheet2","index":1,"n_rows":0,"n_cols":0,"rows_kept":0,"cut":false,"hidden":false,"merged":[]}

{"sheet":"Sheet3","index":2,"n_rows":0,"n_cols":0,"rows_kept":0,"cut":false,"hidden":false,"merged":[]}